[Event "I Liga Centralne Srbije"]
[Site "Bajina Bašta, Serbia"]
[Date "2020.10.16"]
[Round "10.5"]
[White "Djoric, Dusan"]
[Black "Maksimovic, Bojan"]
[Result "1/2-1/2"]
[ECO "A31"]
[WhiteElo "2303"]
[BlackElo "2398"]
[Annotator "Knez"]
[PlyCount "247"]
[EventDate "2020.??.??"]
[TimeControl "90"]
[WhiteClock "0:13:33"]
[BlackClock "0:04:05"]

1. d4 {[%emt 0:00:00]} Nf6 {[%emt 0:00:00]} 2. c4 {[%emt 0:00:00]} c5 {[%emt 0:
00:00]} 3. Nf3 {[%emt 0:00:00]} cxd4 {[%emt 0:00:00]} 4. Nxd4 {[%emt 0:00:00]}
e5 {[%emt 0:00:00]} 5. Nc2 {[%emt 0:00:00]} d5 {[%emt 0:00:00]} 6. cxd5 {
[%emt 0:00:00]} Qxd5 {[%emt 0:00:00]} 7. Qxd5 {[%emt 0:00:00]} Nxd5 {[%emt 0:
00:00]} 8. e4 {[%emt 0:00:00]} Nb4 {[%emt 0:00:00]} 9. Nxb4 {[%emt 0:00:00]}
Bxb4+ {[%emt 0:00:00]} 10. Bd2 {[%emt 0:00:00]} Bxd2+ {[%emt 0:00:00]} 11. Nxd2
{[%emt 0:00:00]} O-O {[%emt 0:00:00]} 12. O-O-O {[%emt 0:00:00]} Nc6 {[%emt 0:
00:00]} 13. Bc4 {[%emt 0:00:00]} Rb8 {[%emt 0:00:00]} 14. a3 {[%emt 0:00:00]}
b5 {[%emt 0:00:00]} 15. Bd5 {[%emt 0:00:00]} Ne7 {[%emt 0:00:00]} 16. Bb3 {
[%emt 0:00:00]} a5 {[%emt 0:00:00]} 17. Nf3 {[%emt 0:00:00]} Bg4 {[%emt 0:00:
00]} 18. Rd3 {[%emt 0:00:00]} Bxf3 {[%emt 0:00:00]} 19. gxf3 {[%emt 0:00:00]}
Nc6 {[%emt 0:00:00]} 20. Kb1 {[%emt 0:00:00]} Nd4 {[%emt 0:00:00]} 21. Rc1 {
[%emt 0:00:00]} Rfc8 {[%emt 0:00:00]} 22. Rxc8+ {[%emt 0:00:00]} Rxc8 {[%emt 0:
00:00]} 23. f4 {[%emt 0:00:00]} Nxb3 {[%emt 0:00:00]} 24. Rxb3 {[%emt 0:00:00]}
Rc5 {[%emt 0:00:00]} 25. fxe5 {[%emt 0:00:00]} Rxe5 {[%emt 0:00:00]} 26. f4 {
[%emt 0:00:00]} Rc5 {[%emt 0:00:00]} 27. Rd3 {[%emt 0:00:00]} g6 {[%emt 0:00:
00]} 28. b3 {[%emt 0:00:00]} Kf8 {[%emt 0:00:00]} 29. Rd8+ {[%emt 0:00:00]} Ke7
{[%emt 0:00:00]} 30. Ra8 {[%emt 0:00:00]} b4 {[%emt 0:00:00]} 31. axb4 {
[%emt 0:00:00]} axb4 {[%emt 0:00:00]} 32. Rb8 {[%emt 0:00:00]} Rh5 {[%emt 0:00:
00]} 33. Rxb4 {[%emt 0:00:00]} Rxh2 {[%emt 0:00:00]} 34. Rb7+ {[%emt 0:00:00]}
Ke6 {[%emt 0:00:00]} 35. Rb6+ {[%emt 0:00:00]} Ke7 {[%emt 0:00:00]} 36. Rb7+ {
[%emt 0:00:00]} Kf6 {[%emt 0:00:00]} 37. e5+ {[%emt 0:00:00]} Ke6 {[%emt 0:00:
00]} 38. Rb6+ {[%emt 0:00:00]} Ke7 {[%emt 0:00:00]} 39. Rb7+ {[%emt 0:00:00]}
Kf8 {[%emt 0:00:00]} 40. b4 {[%emt 0:00:00]} Re2 {[%emt 0:00:00]} 41. b5 {
[%emt 0:00:00]} h5 {[%emt 0:00:00]} 42. b6 {[%emt 0:00:00]} Re4 {[%emt 0:00:00]
} 43. Kc2 {[%emt 0:00:00]} Rb4 {[%emt 0:00:00]} 44. Kd3 {[%emt 0:00:00]} h4 {
[%emt 0:00:00]} 45. e6 {[%emt 0:00:00]} fxe6 {[%emt 0:00:00]} 46. Rh7 {[%emt 0:
00:00]} Rxb6 {[%emt 0:00:00]} 47. Rxh4 {[%emt 0:00:00]} Kg7 {[%emt 0:00:00]}
48. Ke4 {[%emt 0:00:00]} Kf6 {[%emt 0:00:00]} 49. Rh8 {[%emt 0:00:00]} Rb4+ {
[%emt 0:00:00]} 50. Kf3 {[%emt 0:00:00]} Rb3+ {[%emt 0:00:00]} 51. Ke4 {
[%emt 0:00:00]} Rb4+ {[%emt 0:00:00]} 52. Kf3 {[%emt 0:00:00]} Kg7 {[%emt 0:00:
00]} 53. Ra8 {[%emt 0:00:00]} Rb7 {[%emt 0:00:00]} 54. Ke4 {[%emt 0:00:00]} Rf7
{[%emt 0:00:00]} 55. Re8 {[%emt 0:00:00]} Kf6 {[%emt 0:00:00]} 56. Ra8 {
[%emt 0:00:00]} Rb7 {[%emt 0:00:00]} 57. Rf8+ {[%emt 0:00:00]} Ke7 {[%emt 0:00:
00]} 58. Rh8 {[%emt 0:00:00]} Rb4+ {[%emt 0:00:00]} 59. Ke5 {[%emt 0:00:00]}
Rb5+ {[%emt 0:00:00]} 60. Ke4 {[%emt 0:00:00]} Ra5 {[%emt 0:00:00]} 61. Rg8 {
[%emt 0:00:00]} Kf6 {[%emt 0:00:00]} 62. Rf8+ {[%emt 0:00:00]} Ke7 {[%emt 0:00:
00]} 63. Rg8 {[%emt 0:00:00]} Kf7 {[%emt 0:00:00]} 64. Rb8 {[%emt 0:00:00]} Ra1
{[%emt 0:00:00]} 65. Rc8 {[%emt 0:00:00]} Re1+ {[%emt 0:00:00]} 66. Kf3 {
[%emt 0:00:00]} Rd1 {[%emt 0:00:00]} 67. Ra8 {[%emt 0:00:00]} Ke7 {[%emt 0:00:
00]} 68. Rg8 {[%emt 0:00:00]} Kf6 {[%emt 0:00:00]} 69. Rf8+ {[%emt 0:00:00]}
Kg7 {[%emt 0:00:00]} 70. Ra8 {[%emt 0:00:00]} Rd4 {[%emt 0:00:00]} 71. Rb8 {
[%emt 0:00:00]} Ra4 {[%emt 0:00:00]} 72. Rc8 {[%emt 0:00:00]} Kf7 {[%emt 0:00:
00]} 73. Rb8 {[%emt 0:00:00]} Rc4 {[%emt 0:00:00]} 74. Ra8 {[%emt 0:00:00]} Rc1
{[%emt 0:00:00]} 75. Rb8 {[%emt 0:00:00]} Rg1 {[%emt 0:00:00]} 76. Kf2 {
[%emt 0:00:00]} Rg4 {[%emt 0:00:00]} 77. Kf3 {[%emt 0:00:00]} Rh4 {[%emt 0:00:
00]} 78. Ra8 {[%emt 0:00:00]} Kg7 {[%emt 0:00:00]} 79. Re8 {[%emt 0:00:00]} Kf6
{[%emt 0:00:00]} 80. Rf8+ {[%emt 0:00:00]} Ke7 {[%emt 0:00:00]} 81. Rg8 {
[%emt 0:00:00]} Kf7 {[%emt 0:00:00]} 82. Ra8 {[%emt 0:00:00]} Rh5 {[%emt 0:00:
00]} 83. Ke4 {[%emt 0:00:00]} Rh3 {[%emt 0:00:00]} 84. Rb8 {[%emt 0:00:00]} Rg3
{[%emt 0:00:00]} 85. Ra8 {[%emt 0:00:00]} Ke7 {[%emt 0:00:00]} 86. Rb8 {
[%emt 0:00:00]} Rg1 {[%emt 0:00:00]} 87. Ra8 {[%emt 0:00:00]} Re1+ {[%emt 0:00:
00]} 88. Kf3 {[%emt 0:00:00]} Rd1 {[%emt 0:00:00]} 89. Ke4 {[%emt 0:00:00]} Rd8
{[%emt 0:00:00]} 90. Ra5 {[%emt 0:00:00]} Kf6 {[%emt 0:00:00]} 91. Rb5 {
[%emt 0:00:00]} Ra8 {[%emt 0:00:00]} 92. Rc5 {[%emt 0:00:00]} Ra4+ {[%emt 0:00:
00]} 93. Kf3 {[%emt 0:00:00]} Rd4 {[%emt 0:00:00]} 94. Rc8 {[%emt 0:00:00]} g5
{[%emt 0:00:00]} 95. fxg5+ {[%emt 0:00:00]} Kxg5 {[%emt 0:00:00]} 96. Rf8 {
[%emt 0:00:00]} Rd1 {[%emt 0:00:00]} 97. Ke3 {[%emt 0:00:00]} Re1+ {[%emt 0:00:
00]} 98. Kd4 {[%emt 0:00:00]} Kg4 {[%emt 0:00:00]} 99. Rf7 {[%emt 0:00:00]} Re2
{[%emt 0:00:00]} 100. Rf8 {[%emt 0:00:00]} Kg5 {[%emt 0:00:00]} 101. Rf7 {
[%emt 0:00:00]} Re1 {[%emt 0:00:00]} 102. Rf8 {[%emt 0:00:00]} Kg6 {[%emt 0:00:
00]} 103. Rf2 {[%emt 0:00:00]} Rd1+ {[%emt 0:00:00]} 104. Ke5 {[%emt 0:00:00]}
Re1+ {[%emt 0:00:00]} 105. Kd4 {[%emt 0:00:00]} Kg7 {[%emt 0:00:00]} 106. Rf3 {
[%emt 0:00:00]} e5+ {[%emt 0:00:00]} 107. Kd5 {[%emt 0:00:00]} Kg6 {[%emt 0:00:
00]} 108. Rg3+ {[%emt 0:00:37]} Kf6 {[%emt 0:00:00]} 109. Rf3+ {[%emt 0:00:00]}
Kg5 {[%emt 0:00:00]} 110. Rf8 {[%emt 0:00:00]} e4 {[%emt 0:00:00]} 111. Kd4 {
[%emt 0:00:00]} e3 {[%emt 0:00:00]} 112. Kd3 {[%emt 0:00:00]} Kg4 {[%emt 0:00:
00]} 113. Rf7 {[%emt 0:00:00]} Kg3 {[%emt 0:00:00]} 114. Rf8 {[%emt 0:00:00]}
Kg2 {[%emt 0:00:00]} 115. Rf7 {[%emt 0:00:00]} e2 {[%emt 0:00:00]} 116. Rg7+ {
[%emt 0:00:00]} Kf1 {[%emt 0:00:00]} 117. Rf7+ {[%emt 0:00:00]} Kg1 {[%emt 0:
00:00]} 118. Rg7+ {[%emt 0:00:00]} Kf2 {[%emt 0:00:00]} 119. Rf7+ {[%emt 0:00:
00]} Kg3 {[%emt 0:00:00]} 120. Rg7+ {[%emt 0:00:00]} Kf3 {[%emt 0:00:00]} 121.
Rf7+ {[%emt 0:00:00]} Kg4 {[%emt 0:00:00]} 122. Rf2 {[%emt 0:00:00]} Kg3 {
[%emt 0:00:00]} 123. Rxe2 {[%emt 0:00:00]} Rxe2 {[%emt 0:00:00]} 124. Kxe2 {
[%emt 0:00:00]} 1/2-1/2

[Event "I Liga Centralne Srbije"]
[Site "Bajina Bašta, Serbia"]
[Date "2020.10.16"]
[Round "10.5"]
[White "Jovanovic, Dusan D"]
[Black "Bozic, Milan"]
[Result "1-0"]
[ECO "E67"]
[WhiteElo "2412"]
[BlackElo "2270"]
[Annotator "Knez"]
[PlyCount "85"]
[EventDate "2020.??.??"]
[TimeControl "90"]
[WhiteClock "0:22:14"]
[BlackClock "0:15:10"]

1. Nf3 {[%emt 0:00:00]} d6 {[%emt 0:00:00]} 2. d4 {[%emt 0:00:00]} Nf6 {
[%emt 0:00:00]} 3. b3 {[%emt 0:00:00]} g6 {[%emt 0:00:00]} 4. Bb2 {[%emt 0:00:
00]} Bg7 {[%emt 0:00:00]} 5. g3 {[%emt 0:00:00]} O-O {[%emt 0:00:00]} 6. Bg2 {
[%emt 0:00:00]} Re8 {[%emt 0:00:00]} 7. O-O {[%emt 0:00:00]} Nbd7 {[%emt 0:00:
00]} 8. c4 {[%emt 0:00:00]} c6 {[%emt 0:00:00]} 9. Nc3 {[%emt 0:00:00]} e5 {
[%emt 0:00:00]} 10. dxe5 {[%emt 0:00:00]} dxe5 {[%emt 0:00:00]} 11. Qc2 {
[%emt 0:00:00]} Qc7 {[%emt 0:00:00]} 12. Rad1 {[%emt 0:00:00]} Nc5 {[%emt 0:00:
00]} 13. b4 {[%emt 0:00:00]} Bf5 {[%emt 0:00:00]} 14. Qc1 {[%emt 0:00:00]} Ncd7
{[%emt 0:00:00]} 15. h3 {[%emt 0:00:00]} Nb6 {[%emt 0:00:00]} 16. Nd2 {[%emt 0:
00:00]} Be6 {[%emt 0:00:00]} 17. c5 {[%emt 0:00:00]} Nbd5 {[%emt 0:00:00]} 18.
a3 {[%emt 0:00:00]} a5 {[%emt 0:00:00]} 19. e4 {[%emt 0:00:00]} axb4 {[%emt 0:
00:00]} 20. exd5 {[%emt 0:00:00]} bxc3 {[%emt 0:00:00]} 21. dxe6 {[%emt 0:00:
00]} cxb2 {[%emt 0:00:00]} 22. exf7+ {[%emt 0:00:00]} Qxf7 {[%emt 0:00:00]} 23.
Qxb2 {[%emt 0:00:00]} e4 {[%emt 0:00:00]} 24. Rb1 {[%emt 0:00:00]} Qd5 {
[%emt 0:00:00]} 25. Qb3 {[%emt 0:00:00]} Kh8 {[%emt 0:00:00]} 26. Qxd5 {
[%emt 0:00:00]} cxd5 {[%emt 0:00:00]} 27. Rxb7 {[%emt 0:00:00]} Rxa3 {[%emt 0:
00:00]} 28. Nb3 {[%emt 0:00:00]} Rc8 {[%emt 0:00:00]} 29. h4 {[%emt 0:00:00]}
Ne8 {[%emt 0:00:00]} 30. Rd1 {[%emt 0:00:00]} Nc7 {[%emt 0:00:00]} 31. Bh3 {
[%emt 0:00:00]} Rd8 {[%emt 0:00:00]} 32. Nd4 {[%emt 0:00:00]} Rd3 {[%emt 0:00:
00]} 33. Rxd3 {[%emt 0:00:00]} exd3 {[%emt 0:00:00]} 34. Nc6 {[%emt 0:00:00]}
d2 {[%emt 0:00:00]} 35. Bg4 {[%emt 0:00:00]} h5 {[%emt 0:00:00]} 36. Nxd8 {
[%emt 0:00:00]} hxg4 {[%emt 0:00:00]} 37. Rb1 {[%emt 0:00:00]} Nb5 {[%emt 0:00:
00]} 38. Rd1 {[%emt 0:00:00]} Bc3 {[%emt 0:00:00]} 39. Ne6 {[%emt 0:00:00]} Kg8
{[%emt 0:00:00]} 40. c6 {[%emt 0:00:00]} Kf7 {[%emt 0:00:00]} 41. c7 {[%emt 0:
00:00]} Nd6 {[%emt 0:00:00]} 42. Nc5 {[%emt 0:00:00]} Ba5 {[%emt 0:00:00]} 43.
Nb7 {[%emt 0:00:00]} 1-0

[Event "I Liga Centralne Srbije"]
[Site "Bajina Bašta, Serbia"]
[Date "2020.10.16"]
[Round "10.5"]
[White "Popovic, Nenad"]
[Black "Ivanovic, Marko"]
[Result "0-1"]
[ECO "A36"]
[WhiteElo "2249"]
[BlackElo "2277"]
[Annotator "Knez"]
[PlyCount "96"]
[EventDate "2020.??.??"]
[TimeControl "90"]
[WhiteClock "0:04:43"]
[BlackClock "0:02:08"]

1. c4 {[%emt 0:00:00]} c5 {[%emt 0:00:00]} 2. g3 {[%emt 0:00:00]} Nc6 {[%emt 0:
00:00]} 3. Bg2 {[%emt 0:00:00]} g6 {[%emt 0:00:00]} 4. Nc3 {[%emt 0:00:00]} Bg7
{[%emt 0:00:00]} 5. d3 {[%emt 0:00:00]} d6 {[%emt 0:00:00]} 6. Bd2 {[%emt 0:00:
00]} Bd7 {[%emt 0:00:00]} 7. h4 {[%emt 0:00:00]} h6 {[%emt 0:00:00]} 8. Rb1 {
[%emt 0:00:00]} f5 {[%emt 0:00:00]} 9. Nh3 {[%emt 0:00:00]} e5 {[%emt 0:00:00]}
10. a3 {[%emt 0:00:00]} Nf6 {[%emt 0:00:00]} 11. b4 {[%emt 0:00:00]} Rb8 {
[%emt 0:00:00]} 12. Qc1 {[%emt 0:00:00]} cxb4 {[%emt 0:00:00]} 13. axb4 {
[%emt 0:00:00]} Ne7 {[%emt 0:00:00]} 14. b5 {[%emt 0:00:00]} Be6 {[%emt 0:00:
00]} 15. Qa3 {[%emt 0:00:00]} O-O {[%emt 0:00:00]} 16. Qxa7 {[%emt 0:00:00]} f4
{[%emt 0:00:00]} 17. gxf4 {[%emt 0:00:00]} Nf5 {[%emt 0:00:00]} 18. fxe5 {
[%emt 0:00:00]} dxe5 {[%emt 0:00:00]} 19. Ne4 {[%emt 0:00:00]} Nxh4 {[%emt 0:
00:00]} 20. Nxf6+ {[%emt 0:00:00]} Qxf6 {[%emt 0:00:00]} 21. Be4 {[%emt 0:00:
00]} b6 {[%emt 0:00:00]} 22. Be3 {[%emt 0:00:00]} g5 {[%emt 0:00:00]} 23. Ng1 {
[%emt 0:00:00]} g4 {[%emt 0:00:00]} 24. Kd2 {[%emt 0:00:00]} Nf5 {[%emt 0:00:
00]} 25. Bxb6 {[%emt 0:00:00]} Nd6 {[%emt 0:00:00]} 26. Bc7 {[%emt 0:00:03]}
Nxe4+ {[%emt 0:00:00]} 27. dxe4 {[%emt 0:00:00]} Ra8 {[%emt 0:00:00]} 28. Qc5 {
[%emt 0:00:00]} Ra4 {[%emt 0:00:00]} 29. Rc1 {[%emt 0:00:00]} Qg5+ {[%emt 0:00:
00]} 30. Qe3 {[%emt 0:00:00]} Qe7 {[%emt 0:00:00]} 31. b6 {[%emt 0:00:00]} Bf6
{[%emt 0:00:00]} 32. Rxh6 {[%emt 0:00:00]} Kg7 {[%emt 0:00:00]} 33. Rxf6 {
[%emt 0:00:00]} Qxf6 {[%emt 0:00:00]} 34. b7 {[%emt 0:00:00]} Rb4 {[%emt 0:00:
00]} 35. Qc5 {[%emt 0:00:00]} Qg5+ {[%emt 0:00:00]} 36. Kd1 {[%emt 0:00:35]}
Rxb7 {[%emt 0:00:00]} 37. f4 {[%emt 0:00:09]} Qh6 {[%emt 0:00:00]} 38. Qe7+ {
[%emt 0:00:01]} Kg8 {[%emt 0:00:00]} 39. f5 {[%emt 0:00:00]} Bf7 {[%emt 0:00:
00]} 40. Qxe5 {[%emt 0:00:00]} Qe3 {[%emt 0:00:00]} 41. Kc2 {[%emt 0:00:00]}
Bxc4 {[%emt 0:00:00]} 42. Rb1 {[%emt 0:00:05]} Rxb1 {[%emt 0:00:00]} 43. Kxb1 {
[%emt 0:00:00]} Qxg1+ {[%emt 0:00:00]} 44. Kc2 {[%emt 0:00:00]} Qe3 {[%emt 0:
00:00]} 45. Qe7 {[%emt 0:00:00]} Bf7 {[%emt 0:00:00]} 46. Bd8 {[%emt 0:00:00]}
Qxe2+ {[%emt 0:00:00]} 47. Kc3 {[%emt 0:00:00]} Qe3+ {[%emt 0:00:00]} 48. Kc2 {
[%emt 0:00:00]} Re8 {[%emt 0:00:00]} 0-1